fUST/lending_fUST_20240324
["ID","MTS","AMOUNT","RATE_DAILY","PERIOD"]
[320314534,1711285851840,-1000.0,0.0003609,2]
[320314535,1711285851849,-502.00670487,0.0003609,4]
[320314536,1711285851858,-502.11983528,0.0003609,4]
[320314537,1711285851867,-500.0,0.0003609,4]
[320314538,1711285851876,-500.0,0.0003609,4]
[320314539,1711285851885,-500.0,0.0003609,4]
[320314540,1711285851894,-500.0,0.0003609,4]
[320314541,1711285851903,-500.0,0.0003609,4]
[320314542,1711285851912,-500.0,0.0003609,4]
[320314543,1711285851921,-890.64,0.0003609,4]
[320314544,1711285851932,-861.2,0.0003609,4]
[320314545,1711285851941,-501.06763591,0.0003609,4]
[320314546,1711285851950,-500.0,0.0003609,4]
[320314547,1711285851960,-500.0,0.0003609,4]
[320314548,1711285851969,-501.42165037,0.0003609,4]
[320314549,1711285851979,-500.0,0.0003609,4]
[320314550,1711285851988,-500.0,0.0003609,4]
[320314551,1711285851997,-500.0,0.0003609,4]
[320314552,1711285852007,-500.0,0.0003609,4]
[320314553,1711285852015,-500.0,0.0003609,4]
[320314554,1711285852024,-500.0,0.0003609,4]
[320314555,1711285852034,-500.0,0.0003609,4]
[320314556,1711285852044,-500.0,0.0003609,4]
[320314557,1711285852055,-501.00336443,0.0003609,4]
[320314558,1711285852064,-501.74761834,0.0003609,4]
[320314559,1711285852073,-500.0,0.0003609,4]
[320314560,1711285852082,-500.0,0.0003609,4]
[320314561,1711285852091,-500.0,0.0003609,4]
[320314562,1711285852100,-7849.2,0.0003609,4]
[320314563,1711285852109,-500.0,0.0003609,4]
[320314564,1711285852119,-500.0,0.0003609,4]
[320314565,1711285852128,-500.0,0.0003609,4]
[320314566,1711285852137,-500.0,0.0003609,4]
[320314567,1711285852146,-500.0,0.0003609,4]
[320314568,1711285852156,-505.59,0.0003609,2]
[320314569,1711285852165,-1762.95,0.0003609,4]
[320314570,1711285852174,-165.9765467,0.0003609,4]
[320314571,1711285852183,-500.0,0.0003609,4]
[320314572,1711285852192,-291.98805769,0.0003609,4]
[320314573,1711285852201,-500.0,0.0003609,4]
[320314574,1711285852210,-502.69192148,0.0003609,4]
[320314575,1711285852219,-500.0,0.0003609,4]
[320314576,1711285852230,-500.0,0.0003609,4]
[320314577,1711285852240,-1752.71,0.0003609,4]
[320314578,1711285852250,-500.0,0.0003609,4]
[320314579,1711285852260,-501.11607818,0.0003609,4]
[320314580,1711285852269,-501.80176858,0.0003609,4]
[320314581,1711285852278,-502.18552183,0.0003609,4]
[320314582,1711285852288,-500.0,0.0003609,4]
[320314583,1711285852297,-500.0,0.0003609,4]
[320314584,1711285852307,-575.43,0.0003609,4]
[320314585,1711285852316,-500.0,0.0003609,4]
[320314586,1711285852325,-500.0,0.0003609,4]
[320314587,1711285852335,-501.28564003,0.0003609,4]
[320314588,1711285852346,-500.0,0.0003609,4]
[320314589,1711285852358,-500.0,0.0003609,4]
[320314590,1711285852367,-508.3519816,0.0003609,4]
[320314591,1711285852376,-501.01939458,0.0003609,4]
[320314592,1711285852385,-501.86918232,0.0003609,4]
[320314593,1711285852394,-500.0,0.0003609,4]
[320314594,1711285852403,-500.0,0.0003609,4]
[320314595,1711285852413,-500.89619425,0.00036092,4]
[320314596,1711285852422,-500.0,0.00036092,4]
[320314597,1711285852431,-645.50266483,0.00036092,4]
[320314598,1711285852441,-500.0,0.00036092,4]
[320314599,1711285852450,-500.0,0.00036092,4]
[320314600,1711285852460,-500.0,0.00036092,4]
[320314601,1711285852469,-500.0,0.00036092,4]
[320314602,1711285852479,-500.0,0.00036092,4]
[320314603,1711285852488,-500.0,0.00036092,4]
[320314604,1711285852497,-500.0,0.00036092,4]
[320314605,1711285852506,-501.07796265,0.00036092,4]
[320314606,1711285852515,-500.0,0.00036092,4]
[320314607,1711285852524,-500.87427561,0.00036092,4]
[320314608,1711285852533,-500.0,0.00036092,4]
[320314609,1711285852542,-500.0,0.00036092,4]
[320314610,1711285852551,-500.0,0.00036092,4]
[320314611,1711285852562,-500.68526597,0.00036092,4]
[320314612,1711285852571,-500.86817124,0.00036092,4]
[320314613,1711285852579,-500.0,0.00036092,4]
[320314614,1711285852588,-393.77638511,0.00036092,4]
[320314615,1711285852597,-500.0,0.00036092,4]
[320314616,1711285852606,-448.75120669,0.00036092,4]
[320314617,1711285852615,-500.0,0.00036092,4]
[320314618,1711285852624,-727.11,0.00036092,4]
[320314619,1711285852633,-151.0,0.00036092,4]
[320314620,1711285852642,-500.0,0.00036092,4]
[320314621,1711285852651,-500.0,0.00036092,4]
[320314622,1711285852660,-500.0,0.00036092,4]
[320314623,1711285852669,-500.0,0.00036092,4]
[320314624,1711285852678,-500.0,0.00036092,4]
[320314625,1711285852686,-500.0,0.00036092,4]
[320314626,1711285852696,-500.0,0.00036092,4]
[320314627,1711285852708,-500.0,0.00036092,4]
[320314628,1711285852717,-500.93096172,0.00036092,4]
[320314629,1711285852727,-500.0,0.00036092,4]
[320314630,1711285852737,-500.89918739,0.00036092,4]
[320314631,1711285852748,-643.41063904,0.00036092,4]
[320314632,1711285852758,-500.0,0.00036092,4]
[320314633,1711285852767,-500.0,0.00036092,4]
[320314634,1711285852777,-501.23390519,0.00036092,4]
[320314635,1711285852786,-502.42402524,0.00036092,4]
[320314636,1711285852796,-500.0,0.00036092,4]
[320314637,1711285852804,-500.0,0.00036092,4]
[320314638,1711285852814,-502.67852862,0.00036092,4]
[320314639,1711285852823,-1075.86,0.00036092,4]
[320314640,1711285852832,-500.0,0.00036092,4]
[320314641,1711285852842,-501.55719174,0.00036092,4]
[320314642,1711285852852,-500.0,0.00036092,4]
[320314643,1711285852862,-500.0,0.00036092,4]
[320314644,1711285852871,-182.68593209,0.00036092,4]
[320314645,1711285852882,-500.0,0.00036092,4]
[320314646,1711285852891,-500.0,0.00036092,4]
[320314647,1711285852900,-503.92,0.00036092,4]
[320314648,1711285852910,-500.0,0.00036092,4]
[320314649,1711285852919,-741.76,0.00036092,4]
[320314650,1711285852928,-500.0,0.00036093,4]
[320314651,1711285852938,-301.84,0.00036093,4]
[320314652,1711285852947,-235.75,0.00036093,4]
[320314653,1711285852956,-500.0,0.00036093,4]
[320314654,1711285852966,-500.0,0.00036093,4]
[320314655,1711285852975,-500.0,0.00036093,4]
[320314656,1711285852986,-501.01230506,0.00036093,4]
[320314657,1711285852995,-500.0,0.00036093,4]
[320314658,1711285853004,-500.0,0.00036093,4]
[320314659,1711285853014,-500.79441969,0.00036093,4]
[320314660,1711285853023,-500.0,0.00036093,4]
[320314661,1711285853033,-500.0,0.00036093,4]
[320314662,1711285853043,-344.87922627,0.00036093,4]
[320314663,1711285853053,-500.94152464,0.00036093,4]
[320314664,1711285853062,-500.0,0.00036093,4]
[320314665,1711285853072,-500.0,0.00036093,4]
[320314666,1711285853081,-500.0,0.00036093,4]
[320314667,1711285853091,-500.0,0.00036093,4]
[320314668,1711285853100,-505.59,0.00036145,2]
[320314669,1711285853109,-505.59,0.00036199,2]
[320314670,1711285853118,-505.77,0.00036254,2]
[320314671,1711285853128,-500.0,0.00036362,4]
[320314672,1711285853137,-668.15,0.00036362,4]
[320314673,1711285853146,-500.0,0.00036362,4]
[320314674,1711285853156,-823.15,0.00036363,4]
[320314675,1711285853165,-769.02,0.00036363,4]
[320314676,1711285853174,-500.0,0.00036363,4]
[320314677,1711285853183,-6930.09,0.00036363,4]
[320314678,1711285853192,-1250.93,0.00036363,4]
[320314679,1711285853202,-500.0,0.00036363,4]
[320314680,1711285853211,-505.83,0.00036363,4]
[320314681,1711285853220,-1651.97,0.00036363,4]
[320314682,1711285853231,-500.0,0.00036363,4]
[320314683,1711285853240,-575.77,0.00036363,4]
[320314684,1711285853250,-500.0,0.00036363,4]
[320314685,1711285853259,-500.0,0.00036363,4]
[320314686,1711285853269,-1500.81,0.00036363,4]
[320314687,1711285853278,-557.74,0.00036363,4]
[320314688,1711285853287,-611.86,0.00036363,4]
[320314689,1711285853297,-500.0,0.00036363,4]
[320314690,1711285853306,-8230.12,0.00036363,4]
[320314691,1711285853315,-3098.52,0.00036363,4]
[320314692,1711285853325,-500.0,0.00036364,4]
[320314693,1711285853334,-430.07895609,0.00036364,4]
[320314694,1711285853343,-403.22502853,0.00036364,4]
[320314695,1711285853352,-500.0,0.00036364,4]
[320314696,1711285853362,-500.0,0.00036364,4]
[320314697,1711285853371,-500.0,0.00036364,4]
[320314698,1711285853382,-500.0,0.00036364,4]
[320314699,1711285853391,-500.0,0.00036364,4]
[320314700,1711285853400,-500.0,0.00036364,4]
[320314701,1711285853410,-346.7,0.00036364,4]
[320314702,1711285853420,-627.88,0.00036364,4]
[320314703,1711285853429,-375.6480792,0.00036364,4]
[320314704,1711285853517,-500.0,0.00036364,4]
[320314705,1711285853530,-500.0,0.00036364,4]
[320314706,1711285853539,-636.2,0.00036364,4]
[320314707,1711285853549,-500.0,0.00036364,4]
[320314708,1711285853558,-704.78,0.00036364,4]
[320314709,1711285853568,-500.0,0.00036364,4]
[320314710,1711285853578,-1000.0,0.00036364,2]
[320314711,1711285853587,-500.0,0.00036364,4]
[320314712,1711285853596,-500.0,0.00036364,4]
[320314713,1711285853605,-890.64,0.00036364,4]
[320314714,1711285853615,-861.2,0.00036364,4]
[320314715,1711285853624,-500.0,0.00036364,4]
[320314716,1711285853633,-500.0,0.00036364,4]
[320314717,1711285853642,-500.0,0.00036364,4]
[320314718,1711285853651,-500.0,0.00036364,4]
[320314719,1711285853661,-500.0,0.00036364,4]
[320314720,1711285853670,-500.0,0.00036364,4]
[320314721,1711285853680,-500.0,0.00036364,4]
[320314722,1711285853689,-7849.2,0.00036364,4]
[320314723,1711285853699,-617.78,0.00036364,4]
[320314724,1711285853712,-500.0,0.00036364,4]
[320314725,1711285853722,-500.0,0.00036364,4]
[320314726,1711285853733,-1762.95,0.00036364,4]
[320314727,1711285853743,-500.0,0.00036364,4]
[320314728,1711285853754,-500.0,0.00036364,4]
[320314729,1711285853763,-1752.71,0.00036364,4]
[320314730,1711285853773,-500.0,0.00036364,4]
[320314731,1711285853783,-599.54,0.00036364,4]
[320314732,1711285853794,-575.43,0.00036364,4]
[320314733,1711285853803,-153.808029,0.00036364,4]
[320314734,1711285853812,-500.0,0.00036364,4]
[320314735,1711285853822,-500.0,0.00036364,4]
[320314736,1711285853832,-500.0,0.00036366,4]
[320314737,1711285853841,-500.0,0.00036366,4]
[320314738,1711285853850,-500.0,0.00036366,4]
[320314739,1711285853859,-500.0,0.00036366,4]
[320314740,1711285853869,-500.0,0.00036366,4]
[320314741,1711285853879,-500.0,0.00036366,4]
[320314742,1711285853888,-630.62,0.00036366,4]
[320314743,1711285853897,-727.11,0.00036366,4]
[320314744,1711285853906,-500.0,0.00036366,4]
[320314745,1711285853915,-176.65024773,0.00036366,4]
[320314746,1711285853924,-175.4,0.00036366,4]
[320314747,1711285853933,-504.67387645,0.00036366,4]
[320314748,1711285853943,-500.0,0.00036366,4]
[320314749,1711285853952,-500.0,0.00036366,4]
[320314750,1711285853961,-500.0,0.00036366,4]
[320314751,1711285853970,-500.0,0.00036366,4]
[320314752,1711285853981,-500.0,0.00036366,4]
[320314753,1711285853990,-500.0,0.00036366,4]
[320314754,1711285854000,-500.0,0.00036366,4]
[320314755,1711285854009,-1075.86,0.00036366,4]
[320314756,1711285854020,-500.0,0.00036366,4]
[320314757,1711285854029,-395.38407998,0.00036366,4]
[320314758,1711285854039,-500.0,0.00036366,4]
[320314759,1711285854049,-503.92,0.00036366,4]
[320314760,1711285854059,-500.0,0.00036366,4]
[320314761,1711285854068,-741.76,0.00036366,4]
[320314762,1711285854078,-200.82,0.00036367,4]
[320314763,1711285854087,-500.0,0.00036367,4]
[320314764,1711285854096,-202.4,0.00036367,4]
[320314765,1711285854105,-500.0,0.00036367,4]
[320314766,1711285854114,-259.75,0.00036367,4]
[320314767,1711285854123,-500.0,0.00036367,4]
[320314768,1711285854133,-500.0,0.00036367,4]
[320314769,1711285854143,-823.15,0.00036637,4]
[320314770,1711285854152,-769.02,0.00036637,4]
[320314771,1711285854163,-500.0,0.00036637,4]
[320314772,1711285854172,-6930.09,0.00036637,4]
[320314773,1711285854181,-1250.93,0.00036637,4]
[320314774,1711285854190,-500.0,0.00036637,4]
[320314775,1711285854200,-505.83,0.00036637,4]
[320314776,1711285854209,-1651.97,0.00036637,4]
[320314777,1711285854218,-500.0,0.00036637,4]
[320314778,1711285854228,-575.77,0.00036637,4]
[320314779,1711285854237,-500.0,0.00036637,4]
[320314780,1711285854246,-500.0,0.00036637,4]
[320314781,1711285854256,-1500.81,0.00036637,4]
[320314782,1711285854265,-557.74,0.00036637,4]
[320314783,1711285854274,-611.86,0.00036637,4]
[320314784,1711285854284,-500.0,0.00036637,4]
[320314785,1711285854293,-8230.12,0.00036637,4]
[320314786,1711285854302,-3098.52,0.00036637,4]
[320314787,1711285854311,-500.0,0.00036638,4]
[320314788,1711285854321,-519.36,0.00036638,4]
[320314789,1711285854330,-262.68,0.00036638,4]
[320314790,1711285854339,-559.02,0.00036638,4]
[320314791,1711285854348,-500.0,0.00036638,4]
[320314792,1711285854357,-627.88,0.00036638,4]
[320314793,1711285854366,-500.0,0.00036638,4]
[320314794,1711285854375,-500.0,0.00036638,4]
[320314795,1711285854384,-704.78,0.00036638,4]
[320314796,1711285854395,-1000.0,0.00036638,2]
[320314797,1711285854404,-500.0,0.00036638,4]
[320314798,1711285854413,-890.64,0.00036638,4]
[320314799,1711285854422,-861.2,0.00036638,4]
[320314800,1711285854431,-500.0,0.00036638,4]
[320314801,1711285854440,-500.0,0.00036638,4]
[320314802,1711285854450,-500.0,0.00036638,4]
[320314803,1711285854460,-500.0,0.00036638,4]
[320314804,1711285854469,-500.0,0.00036638,4]
[320314805,1711285854479,-7849.2,0.00036638,4]
[320314806,1711285854487,-1762.95,0.00036638,4]
[320314807,1711285854496,-500.0,0.00036638,4]
[320314808,1711285854505,-500.0,0.00036638,4]
[320314809,1711285854516,-1752.71,0.00036638,4]
[320314810,1711285854525,-575.43,0.00036638,4]
[320314811,1711285854535,-500.0,0.00036638,4]
[320314812,1711285854546,-500.0,0.0003664,4]
[320314813,1711285854556,-500.0,0.0003664,4]
[320314814,1711285854566,-605.10850082,0.0003664,4]
[320314815,1711285854575,-500.0,0.0003664,4]
[320314816,1711285854584,-500.0,0.0003664,4]
[320314817,1711285854594,-727.11,0.0003664,4]
[320314818,1711285854603,-500.0,0.0003664,4]
[320314819,1711285854612,-500.0,0.0003664,4]
[320314820,1711285854622,-500.0,0.0003664,4]
[320314821,1711285854631,-500.0,0.0003664,4]
[320314822,1711285854641,-1075.86,0.0003664,4]
[320314823,1711285854650,-500.0,0.0003664,4]
[320314824,1711285854659,-363.66,0.0003664,4]
[320314825,1711285854668,-503.92,0.0003664,4]
[320314826,1711285854677,-164.2,0.0003664,4]
[320314827,1711285854686,-741.76,0.0003664,4]
[320314828,1711285854695,-500.0,0.00036641,4]
[320314829,1711285854708,-500.0,0.00036641,4]
[320314830,1711285854717,-487.15,0.00036641,4]
[320314831,1711285854726,-500.0,0.0003691,4]
[320314832,1711285854735,-668.15,0.0003691,4]
[320314833,1711285854745,-500.0,0.0003691,4]
[320314834,1711285854754,-823.15,0.00036911,4]
[320314835,1711285854765,-769.02,0.00036911,4]
[320314836,1711285854774,-500.0,0.00036911,4]
[320314837,1711285854785,-6930.09,0.00036911,4]
[320314838,1711285854794,-1250.93,0.00036911,4]
[320314839,1711285854803,-500.0,0.00036911,4]
[320314840,1711285854813,-505.83,0.00036911,4]
[320314841,1711285854822,-1651.97,0.00036911,4]
[320314842,1711285854832,-500.0,0.00036911,4]
[320314843,1711285854841,-575.77,0.00036911,4]
[320314844,1711285854851,-500.0,0.00036911,4]
[320314845,1711285854862,-500.0,0.00036911,4]
[320314846,1711285854872,-1500.81,0.00036911,4]
[320314847,1711285854881,-557.74,0.00036911,4]
[320314848,1711285854891,-611.86,0.00036911,4]
[320314849,1711285854900,-500.0,0.00036911,4]
[320314850,1711285854909,-8230.12,0.00036911,4]
[320314851,1711285854919,-3098.52,0.00036911,4]
[320314852,1711285854928,-500.0,0.00036912,4]
[320314853,1711285854938,-500.0,0.00036912,4]
[320314854,1711285854947,-627.88,0.00036912,4]
[320314855,1711285854957,-500.0,0.00036912,4]
[320314856,1711285854966,-500.0,0.00036912,4]
[320314857,1711285854975,-704.78,0.00036912,4]
[320314858,1711285854985,-1000.0,0.00036912,2]
[320314859,1711285854995,-224.92,0.00036912,4]
[320314860,1711285855005,-890.64,0.00036912,4]
[320314861,1711285855015,-861.2,0.00036912,4]
[320314862,1711285855024,-500.0,0.00036912,4]
[320314863,1711285855034,-500.0,0.00036912,4]
[320314864,1711285855043,-500.0,0.00036912,4]
[320314865,1711285855052,-500.0,0.00036912,4]
[320314866,1711285855062,-500.0,0.00036912,4]
[320314867,1711285855071,-7849.2,0.00036912,4]
[320314868,1711285855080,-1762.95,0.00036912,4]
[320314869,1711285855089,-500.0,0.00036912,4]
[320314870,1711285855098,-500.0,0.00036912,4]
[320314871,1711285855107,-1752.71,0.00036912,4]
[320314872,1711285855116,-575.43,0.00036912,4]
[320314873,1711285855126,-317.0,0.00036912,4]
[320314874,1711285855135,-154.12,0.00036914,4]
[320314875,1711285855216,-500.0,0.00036914,4]
[320314876,1711285855226,-500.0,0.00036914,4]
[320314877,1711285855237,-500.0,0.00036914,4]
[320314878,1711285855246,-727.11,0.00036914,4]
[320314879,1711285855256,-500.0,0.00036914,4]
[320314880,1711285855266,-500.0,0.00036914,4]
[320314881,1711285855275,-297.04,0.00036914,4]
[320314882,1711285855284,-500.0,0.00036914,4]
[320314883,1711285855293,-1075.86,0.00036914,4]
[320314884,1711285855302,-267.34,0.00036914,4]
[320314885,1711285855310,-503.92,0.00036914,4]
[320314886,1711285855319,-741.76,0.00036914,4]
[320314887,1711285855329,-572.48,0.00036915,4]
[320314888,1711285855338,-326.25,0.00036915,4]
[320314889,1711285855347,-500.0,0.00037034,4]
[320314890,1711285855356,-500.0,0.00037034,4]
[320314891,1711285855365,-315.06216528,0.00037034,4]
[320314892,1711285855374,-668.15,0.00037034,4]
[320314893,1711285855383,-668.15,0.00037034,4]
[320314894,1711285855392,-668.15,0.00037034,4]
[320314895,1711285855401,-668.15,0.00037034,4]
[320314896,1711285855410,-668.15,0.00037034,4]
[320314897,1711285855420,-668.15,0.00037034,4]
[320314898,1711285855428,-500.0,0.00037034,4]
[320314899,1711285855438,-500.0,0.00037034,4]
[320314900,1711285855446,-500.0,0.00037034,4]
[320314901,1711285855455,-500.0,0.00037034,4]
[320314902,1711285855466,-500.0,0.00037034,4]
[320314903,1711285855475,-500.0,0.00037034,4]
[320314904,1711285855485,-1348.64,0.00037034,4]
[320314905,1711285855494,-1348.64,0.00037034,4]
[320314906,1711285855504,-1348.64,0.00037034,4]
[320314907,1711285855513,-1348.64,0.00037034,4]
[320314908,1711285855522,-1348.64,0.00037034,4]
[320314909,1711285855532,-1348.64,0.00037034,4]
[320314910,1711285855540,-1348.64,0.00037034,4]
[320314911,1711285855550,-151.0,0.00037035,2]
[320314912,1711285855559,-151.0,0.00037035,2]
[320314913,1711285855568,-151.401859,0.00037035,2]
[320314914,1711285855577,-153.845731,0.00037035,2]
[320314915,1711285855586,-153.845731,0.00037035,2]
[320314916,1711285855595,-273376.06314895,0.00037035,2]
[320314917,1711285855604,-150.0,0.00037184,2]
[320314918,1711285855613,-668.15,0.00037184,4]
[320314919,1711285855622,-500.0,0.00037184,4]
[320314920,1711285855631,-823.15,0.00037185,4]
[320314921,1711285855640,-769.02,0.00037185,4]
[320314922,1711285855649,-500.0,0.00037185,4]
[320314923,1711285855658,-6930.09,0.00037185,4]
[320314924,1711285855667,-1250.93,0.00037185,4]
[320314925,1711285855677,-500.0,0.00037185,4]
[320314926,1711285855686,-505.83,0.00037185,4]
[320314927,1711285855696,-1651.97,0.00037185,4]
[320314928,1711285855708,-500.0,0.00037185,4]
[320314929,1711285855718,-575.77,0.00037185,4]
[320314930,1711285855727,-500.0,0.00037185,4]
[320314931,1711285855737,-500.0,0.00037185,4]
[320314932,1711285855746,-1500.81,0.00037185,4]
[320314933,1711285855755,-557.74,0.00037185,4]
[320314934,1711285855765,-611.86,0.00037185,4]
[320314935,1711285855774,-8230.12,0.00037185,4]
[320314936,1711285855785,-3098.52,0.00037185,4]
[320314937,1711285855793,-500.0,0.00037186,4]
[320314938,1711285855803,-500.0,0.00037186,4]
[320314939,1711285855812,-627.88,0.00037186,4]
[320314940,1711285855821,-500.0,0.00037186,4]
[320314941,1711285855831,-500.0,0.00037186,4]
[320314942,1711285855840,-704.78,0.00037186,4]
[320314943,1711285855849,-1000.0,0.00037186,2]
[320314944,1711285855858,-890.64,0.00037186,4]
[320314945,1711285855867,-861.2,0.00037186,4]
[320314946,1711285855876,-495.5,0.00037186,4]
[320314947,1711285855885,-542.54,0.00037186,4]
[320314948,1711285855894,-206.54,0.00037186,4]
[320314949,1711285855903,-500.0,0.00037186,4]
[320314950,1711285855912,-500.0,0.00037186,4]
[320314951,1711285855921,-7849.2,0.00037186,4]
[320314952,1711285855930,-1762.95,0.00037186,4]
[320314953,1711285855939,-500.0,0.00037186,4]
[320314954,1711285855949,-500.0,0.00037186,4]
[320314955,1711285855958,-1752.71,0.00037186,4]
[320314956,1711285855967,-575.43,0.00037186,4]
[320314957,1711285855976,-371.84,0.00037188,4]
[320314958,1711285855987,-500.0,0.00037188,4]
[320314959,1711285855996,-500.0,0.00037188,4]
[320314960,1711285856006,-727.11,0.00037188,4]
[320314961,1711285856015,-500.0,0.00037188,4]
[320314962,1711285856024,-500.0,0.00037188,4]
[320314963,1711285856034,-500.0,0.00037188,4]
[320314964,1711285856043,-1075.86,0.00037188,4]
[320314965,1711285856052,-503.92,0.00037188,4]
[320314966,1711285856061,-741.76,0.00037188,4]
[320314967,1711285856070,-823.15,0.00037459,4]
[320314968,1711285856081,-769.02,0.00037459,4]
[320314969,1711285856090,-500.0,0.00037459,4]
[320314970,1711285856099,-6930.09,0.00037459,4]
[320314971,1711285856108,-1250.93,0.00037459,4]
[320314972,1711285856119,-500.0,0.00037459,4]
[320314973,1711285856129,-505.83,0.00037459,4]
[320314974,1711285856138,-1651.97,0.00037459,4]
[320314975,1711285856148,-500.0,0.00037459,4]
[320314976,1711285856158,-575.77,0.00037459,4]
[320314977,1711285856168,-500.0,0.00037459,4]
[320314978,1711285856177,-1500.81,0.00037459,4]
[320314979,1711285856186,-557.74,0.00037459,4]
[320314980,1711285856196,-611.86,0.00037459,4]
[320314981,1711285856205,-8230.12,0.00037459,4]
[320314982,1711285856214,-3098.52,0.00037459,4]
[320314983,1711285856223,-500.0,0.0003746,4]
[320314984,1711285856233,-500.0,0.0003746,4]
[320314985,1711285856242,-627.88,0.0003746,4]
[320314986,1711285856252,-432.24,0.0003746,4]
[320314987,1711285856261,-435.78,0.0003746,4]
[320314988,1711285856270,-704.78,0.0003746,4]
[320314989,1711285856279,-1000.0,0.0003746,2]
[320314990,1711285856288,-890.64,0.0003746,4]
[320314991,1711285856297,-861.2,0.0003746,4]
[320314992,1711285856305,-500.0,0.0003746,4]
[320314993,1711285856316,-500.0,0.0003746,4]
[320314994,1711285856326,-7849.2,0.0003746,4]
[320314995,1711285856335,-1762.95,0.0003746,4]
[320314996,1711285856346,-500.0,0.0003746,4]
[320314997,1711285856355,-292.32,0.0003746,4]
[320314998,1711285856365,-1752.71,0.0003746,4]
[320314999,1711285856374,-575.43,0.0003746,4]
[320315000,1711285856383,-500.0,0.00037462,4]
[320315001,1711285856392,-500.0,0.00037462,4]
[320315002,1711285856401,-727.11,0.00037462,4]
[320315003,1711285856410,-500.0,0.00037462,4]
[320315004,1711285856419,-500.0,0.00037462,4]
[320315005,1711285856428,-500.0,0.00037462,4]
[320315006,1711285856437,-1075.86,0.00037462,4]
[320315007,1711285856446,-503.92,0.00037462,4]
[320315008,1711285856456,-741.76,0.00037462,4]
[320315009,1711285856465,-823.15,0.00037733,4]
[320315010,1711285856474,-769.02,0.00037733,4]
[320315011,1711285856486,-500.0,0.00037733,4]
[320315012,1711285856495,-6930.09,0.00037733,4]
[320315013,1711285856504,-1250.93,0.00037733,4]
[320315014,1711285856513,-500.0,0.00037733,4]
[320315015,1711285856522,-505.83,0.00037733,4]
[320315016,1711285856531,-1651.97,0.00037733,4]
[320315017,1711285856542,-500.0,0.00037733,4]
[320315018,1711285856551,-575.77,0.00037733,4]
[320315019,1711285856562,-500.0,0.00037733,4]
[320315020,1711285856571,-1500.81,0.00037733,4]
[320315021,1711285856579,-557.74,0.00037733,4]
[320315022,1711285856588,-611.86,0.00037733,4]
[320315023,1711285856597,-575.43,0.00037733,4]
[320315024,1711285856606,-8230.12,0.00037733,4]
[320315025,1711285856615,-3098.52,0.00037733,4]
[320315026,1711285856624,-500.0,0.00037734,4]
[320315027,1711285856634,-500.0,0.00037734,4]
[320315028,1711285856645,-627.88,0.00037734,4]
[320315029,1711285856654,-704.78,0.00037734,4]
[320315030,1711285856663,-1000.0,0.00037734,2]
[320315031,1711285856672,-890.64,0.00037734,4]
[320315032,1711285856751,-861.2,0.00037734,4]
[320315033,1711285856761,-500.0,0.00037734,4]